Cogmind - Beta 10.1 *** ADVENTURER MODE // 2020.10.20 @ 17:55:07 Player: Kay Result: Destroyed by as-12040 with Assembled Blade Performance ------------- Evolutions (0) 0 Regions Visited (4) 800 Robots Destroyed (49) 245 Value Destroyed (744) 744 Prototype IDs (4) 80 Alien Tech Used (0) 0 Bonus (25) 25 TOTAL SCORE: 1894 Bonus ------- Follower Combat Kills 25 Cogmind --------- Core Integrity 0/250 Matter 293/300 Energy 100/100 System Corruption 0% Temperature Cool (0) Movement Core (50) Location -9/Mines Parts ------- > --- POWER (1) -------- (None) > --- PROPULSION (2) --- (None) > --- UTILITY (2) ------ (None) > --- WEAPON (2) ------- (None) > --- INVENTORY (4) ---- Aluminum Leg Signal Interpreter Transport Network Coupler ECM Suite Peak State ------------ > --- POWER ------------ Improved Ion Engine > --- PROPULSION ------- Aluminum Leg Aluminum Leg > --- UTILITY ---------- Improved Heat Sink High-capacity Storage Unit > --- WEAPON ----------- Particle Gun Light Assault Rifle > --- INVENTORY -------- Ion Engine Aluminum Leg Aluminum Leg High-capacity Battery Sensor Array Signal Interpreter Transport Network Coupler ECM Suite Beam Cannon Light Assault Rifle Rocket Launcher Mining Laser [Rating: 12] Favorites ----------- Power Ion Engine Engine Ion Engine Propulsion Aluminum Leg Leg Aluminum Leg Utility Improved Heat Sink Device Improved Heat Sink Storage Large Storage Unit Weapon Assault Rifle Energy Gun Particle Gun Energy Cannon Beam Cannon Ballistic Gun Assault Rifle Launcher Rocket Launcher Build | -11 -10 -10 -10 -9 ------- Run | Scr Mat Min Exi Min Slots Evolved . | . . . . . Power . | . . . . . Propulsion . | . . . . . Utility . | . . . . . Weapon . | . . . . . Parts Attached 27 | 4 10 6 1 6 Power 3 | 1 1 . . 1 Engine 3 | 1 1 . . 1 Core . | . . . . . Reactor . | . . . . . Propulsion 7 | . 3 2 . 2 Treads . | . . . . . Leg 7 | . 3 2 . 2 Wheel . | . . . . . Hover . | . . . . . Flight . | . . . . . Utility 8 | 1 4 1 1 1 Device 4 | . 2 1 . 1 Storage 4 | 1 2 . 1 . Processor . | . . . . . Hackware . | . . . . . Protection . | . . . . . Artifact . | . . . . . Weapon 9 | 2 2 3 . 2 Energy Gun 4 | 1 1 2 . . Energy Cannon 1 | . 1 . . . Ballistic Gun 3 | 1 . 1 . 1 Ballistic Cannon . | . . . . . Launcher 1 | . . . . 1 Special Weapon . | . . . . . Impact Weapon . | . . . . . Slashing Weapon . | . . . . . Piercing Weapon . | . . . . . Special Melee Weapon . | . . . . . Unidentified Prototypes . | . . . . . Parts Lost 7 | . . 1 . 6 Power . | . . . . . Propulsion 2 | . . . . 2 Utility 1 | . . . . 1 Weapon 4 | . . 1 . 3 Highest Loss Streak 6 | . . 1 . 6 Average Slot Usage (%) 99 | . 98 99 100 98 Engine 14 | . 14 14 14 14 Leg 27 | . 28 28 28 27 Device 13 | . 12 14 14 13 Storage 13 | . 14 14 14 13 Energy Gun 9 | . 3 6 14 13 Energy Cannon 4 | . 10 7 . . Ballistic Gun 13 | . 14 14 14 13 Naked Turns . | . . . . . Heaviest Build 45 | 13 27 27 42 45 Greatest Support 20 | 3 20 20 20 20 Greatest Overweight (x) 4 | 4 1 1 2 2 Average Overweight (x) 1 | 3 . 1 1 2 Largest Inventory Capacity 12 | 6 10 10 12 12 Average Capacity 9 | 5 8 10 10 11 Most Carried 12 | 4 10 10 10 12 Average Carried 8 | 3 6 9 9 11 Final Capacity 12 | 6 10 10 12 4 Final Carried 10 | 4 10 9 9 4 Class Distribution -------------------- 52% | Mutant 47% | Scavenger-Mutant Dominant Class ---------------- Mutant | -10/Materials Mutant | -10/Mines Scavenger-Mutant | -10/Exiles Scavenger-Mutant | -9/Mines Resources | -11 -10 -10 -10 -9 ----------- Run | Scr Mat Min Exi Min Matter Collected 665 | 225 220 128 . 92 Remotely . | . . . . . Salvage Created 1186 | . 540 433 . 213 Parts 88 | . 48 25 . 15 Haulers Intercepted 1 | . 1 . . . Recyclers Shooed . | . . . . . Parts Field Recycled . | . . . . . Retrieved Matter . | . . . . . Parts Self-Destructed . | . . . . . Prevented . | . . . . . Kills | -11 -10 -10 -10 -9 ------- Run | Scr Mat Min Exi Min Combat Hostiles Destroyed 41 | . 15 17 . 9 Guns 28 | . 8 12 . 8 Cannons 12 | . 7 5 . . AOE 1 | . . . . 1 Classes Destroyed 9 | . 5 1 . 3 Worker 1 | . 1 . . . Builder 1 | . . . . 1 Hauler 1 | . 1 . . . Recycler 2 | . . 1 . 1 Watcher 3 | . 3 . . . Swarmer 25 | . 9 13 . 3 Grunt 10 | . 6 4 . . Duelist 1 | . . . . 1 Assembled 5 | . . . . 5 Best Kill Streak 9 | . 5 3 . 9 Combat Bots Only 5 | . 4 3 . 5 Max Kills in Single Turn 2 | . 1 1 . 2 Gunslinging . | . . . . . Exploded 1 | . . . . 1 Melee . | . . . . . Uniques/NPCs Destroyed . | . . . . . Combat | -11 -10 -10 -10 -9 -------- Run | Scr Mat Min Exi Min Damage Taken 1224 | . 262 245 . 717 Core 263 | . 60 24 . 179 Absorbed by Shields . | . . . . . Core Remaining (%) 100 | 100 . . . . Volleys Fired 89 | . 35 31 1 22 Largest 2 | . 2 2 2 2 Hottest 85 | . 80 80 85 85 Shots Fired 170 | . 70 61 2 37 Gun 129 | . 50 41 2 36 Cannon 40 | . 20 20 . . Launcher 1 | . . . . 1 Special . | . . . . . Kinetic 89 | . 35 31 1 22 Thermal 65 | . 20 30 1 14 Explosive 1 | . . . . 1 Electromagnetic 15 | . 15 . . . Robot Hit Streak 23 | . 11 23 . 4 Robot Miss Streak 4 | . 3 2 . 4 Penetration Max . | . . . . . Secondary Targets 4 | . 1 1 . 2 Max Gunslinging Chain 1 | . 1 1 . 1 Shots Hit Robots 109 | . 42 47 . 20 Core Hits 68 | . 23 22 . 23 Critical Hits . | . . . . . Critical Kills . | . . . . . Critical Parts Destroyed . | . . . . . Melee Attacks . | . . . . . Impact . | . . . . . Slashing . | . . . . . Piercing . | . . . . . Sneak Attacks . | . . . . . Combat Hostiles . | . . . . . Follow-up Attacks . | . . . . . Damage Inflicted 1611 | . 598 653 . 360 Guns 907 | . 335 340 . 232 Cannons 576 | . 263 313 . . Explosions 128 | . . . . 128 Melee . | . . . . . Ramming . | . . . . . Kinetic 544 | . 177 251 . 116 Thermal 781 | . 263 402 . 116 Explosive 128 | . . . . 128 Electromagnetic 158 | . 158 . . . Impact . | . . . . . Slashing . | . . . . . Piercing . | . . . . . Highest Corruption . | . . . . . Average Corruption . | . . . . . Corruption Purged . | . . . . . Overload Shots . | . . . . . Overflow Damage . | . . . . . Projectiles . | . . . . . Explosions . | . . . . . Melee . | . . . . . Knockbacks . | . . . . . Impact . | . . . . . Kinetic . | . . . . . Secondary . | . . . . . Self-Inflicted Damage . | . . . . . Shots . | . . . . . Rammed . | . . . . . Targets Rammed . | . . . . . Kicked . | . . . . . Crushed . | . . . . . Highest Temperature 61 | . 5 1 16 61 Average Temperature 19 | . 5 1 12 22 Received Heat Transfer 287 | . 102 45 . 140 Siege Activations . | . . . . . Robots Corrupted . | . . . . . Combat Hostiles . | . . . . . Parts Fried 1 | . 1 . . . Impact Corruptions . | . . . . . Robots Melted . | . . . . . Combat Hostiles . | . . . . . Parts Melted 2 | . 1 . . 1 Heat Transferred 1717 | . 555 866 . 296 Parts Sabotaged . | . . . . . Parts Stolen . | . . . . . Parts Stripped . | . . . . . Power Chain Reactions . | . . . . . Missiles Intercepted . | . . . . . Alert | -11 -10 -10 -10 -9 ------- Run | Scr Mat Min Exi Min Peak Influence 311 | . 311 223 . 101 Initial 8 | . . 8 . . Average 59 | . 109 47 . 17 Maximum Alert Level 1 | . 1 1 . . Low Security (%) 93 | 100 85 95 . 100 Level 1 6 | . 14 4 . . Level 2 . | . . . . . Level 3 . | . . . . . Level 4 . | . . . . . Level 5 . | . . . . . High Security . | . . . . . Max Security . | . . . . . Squads Dispatched 2 | . 2 . . . Investigation 2 | . 2 . . . Extermination . | . . . . . Reinforcement . | . . . . . Assault . | . . . . . Garrison . | . . . . . Intercept . | . . . . . Construction Impeded . | . . . . . Haulers Reinforced . | . . . . . Stealth | -11 -10 -10 -10 -9 --------- Run | Scr Mat Min Exi Min Distress Signals 1 | . 1 . . . Communications Jammed . | . . . . . Distress Signals . | . . . . . Times Spotted 67 | . 20 20 . 27 Peak Tracking Total 15 | . 5 3 . 15 Tactical Retreats 3 | . . 2 . 1 Traps | -11 -10 -10 -10 -9 ------- Run | Scr Mat Min Exi Min Traps Triggered 1 | . 1 . . . Indirectly . | . . . . . Trap Hack Attempts . | . . . . . Triggered . | . . . . . Disarmed . | . . . . . Reprogrammed . | . . . . . Reused . | . . . . . Traps Extracted . | . . . . . Installed . | . . . . . Triggered . | . . . . . Machines | -11 -10 -10 -10 -9 ---------- Run | Scr Mat Min Exi Min Machines Disabled . | . . . . . Max in Single Turn . | . . . . . Machines Sabotaged . | . . . . . Garrisons Compromised . | . . . . . Overloaded Fab Kills . | . . . . . Fab Network Shutdowns . | . . . . . Hacking | -11 -10 -10 -10 -9 --------- Run | Scr Mat Min Exi Min Machines Accessed 12 | . 8 . 4 . Terminals 5 | . 5 . . . Fabricators . | . . . . . Repair Stations 1 | . 1 . . . Recycling Units 2 | . 2 . . . Scanalyzers . | . . . . . Garrison Access . | . . . . . Total Hacks 78 | . 29 . 49 . Successful 61 | . 12 . 49 . Failed 17 | . 17 . . . Catastrophic 3 | . 3 . . . Database Lockouts . | . . . . . Manual 28 | . 25 . 3 . Terminals 22 | . 22 . . . Fabricators . | . . . . . Repair Stations 4 | . 4 . . . Recycling Units 3 | . 3 . . . Scanalyzers . | . . . . . Garrison Access . | . . . . . Terminal Hacks 57 | . 8 . 49 . Record 49 | . . . 49 . Robot Analysis 2 | . 2 . . . Prototype ID Bank 2 | . 2 . . . Alert Level 2 | . 2 . . . Unreport Threat 1 | . 1 . . . Hauler Manifests 1 | . 1 . . . Fabricator Hacks . | . . . . . Repair Station Hacks 3 | . 3 . . . Scan Component 1 | . 1 . . . Repair 1 | . 1 . . . Refit 1 | . 1 . . . Recycling Unit Hacks . | . . . . . Scanalyzer . | . . . . . Garrison Access Hacks . | . . . . . Unauthorized Hacks 1 | . 1 . . . Terminals . | . . . . . Fabricators . | . . . . . Repair Stations . | . . . . . Recycling Units 1 | . 1 . . . Tunnel 1 | . 1 . . . Scanalyzers . | . . . . . Garrison Access . | . . . . . Data Cores Recovered . | . . . . . Used . | . . . . . Hacking Detections 6 | . 6 . . . Full Trace Events . | . . . . . Feedback Events . | . . . . . Feedback Blocked . | . . . . . Robot Schematics Acquired . | . . . . . Robots Built . | . . . . . Matter . | . . . . . Time . | . . . . . Total Robot Build Rating . | . . . . . Part Schematics Acquired . | . . . . . Parts Built . | . . . . . Matter . | . . . . . Time . | . . . . . Total Part Build Rating . | . . . . . Parts Repaired 1 | . 1 . . . Time 26 | . 26 . . . Parts Recycled . | . . . . . Recycled Matter . | . . . . . Retrieved Matter . | . . . . . Retrieved Components . | . . . . . Parts Scanalyzed . | . . . . . Part Schematics Acquired . | . . . . . Parts Damaged . | . . . . . Bothacking | -11 -10 -10 -10 -9 ------------ Run | Scr Mat Min Exi Min Used RIF Installer . | . . . . . Robots Hacked . | . . . . . Non-combat . | . . . . . Combat . | . . . . . Robot Hacks Applied . | . . . . . Relay Couplers Released . | . . . . . Robots Rewired . | . . . . . Allies Hacked . | . . . . . Hacks Repelled . | . . . . . Allies | -11 -10 -10 -10 -9 -------- Run | Scr Mat Min Exi Min Total Allies 3 | . . . . 3 Largest Group 3 | . . . . 3 Highest-Rated Group 40 | . . . . 40 Highest-Rated Ally 16 | . . . . 16 Total Orders . | . . . . . Ally Attacks 23 | . . . . 23 Total Damage 184 | . . . . 184 Kills 1 | . . . . 1 Allies Corrupted . | . . . . . Allies Melted . | . . . . . Intel | -11 -10 -10 -10 -9 ------- Run | Scr Mat Min Exi Min Robot Analysis Total 2 | . 2 . . . Derelict Logs Recovered 3 | . . 1 . 2 Drone Launches . | . . . . . Drone Recoveries . | . . . . . Exploration | -11 -10 -10 -10 -9 ------------- Run | Scr Mat Min Exi Min Turns Passed 4849 | 112 1127 1403 1387 820 Spaces Moved 2880 | 45 710 835 875 415 Core 45 | 45 . . . . Treads . | . . . . . Legs 2835 | . 710 835 875 415 Wheels . | . . . . . Hover . | . . . . . Flight . | . . . . . Fastest Speed 50 | 50 120 150 150 180 Average Speed 153 | 208 133 150 158 180 Slowest Speed 250 | 250 150 150 180 180 Overloaded Moves . | . . . . . Propulsion Burnouts . | . . . . . Robots Hopped . | . . . . . Cave-ins Triggered . | . . . . . Exploration Rate (%) 68 | 5 70 99 93 75 Regions Visited 4 Branch Regions 3 Pre-discovered Areas 3 | . 1 1 1 . Known Exits Taken . | . . . . . Unknown Exits Taken 4 | 1 1 1 1 . Scrap Searched 2 | . . 1 . 1 Spaces Dug . | . . . . . Terrain Destroyed 3 | . . . . 3 Melee . | . . . . . Projectile . | . . . . . AOE 3 | . . . . 3 Terrain Rammed . | . . . . . Walls Destroyed . | . . . . . Machines Disabled . | . . . . . Actions | -11 -10 -10 -10 -9 --------- Run | Scr Mat Min Exi Min Total 3147 | 64 818 928 878 459 Wait 106 | 8 45 47 . 6 Move 2876 | 44 709 834 874 415 Hop . | . . . . . Pick Up 28 | 8 13 3 1 3 Fast Attach . | . . . . . Attach 11 | 4 3 1 . 3 Detach . | . . . . . Swap 16 | . 7 5 1 3 Drop 21 | . 6 7 1 7 Fire 89 | . 35 31 1 22 Melee . | . . . . . Ram . | . . . . . Kick . | . . . . . Crush . | . . . . . Escape Stasis . | . . . . . Rewire . | . . . . . Trap . | . . . . . Miscellaneous . | . . . . . Route ------- -11/Scrapyard -10/Materials (discovered 4 exits: [*Mat x3] / [*Min]) -10/Mines (discovered 3 exits: [*Mat x2] / *Exi) -10/Exiles (discovered 2 exits: [*Min x2]) -9/Mines (discovered 1 exit: [*Mat]) History --------- Turn | Location | Event 6 | -11/Scrapyard | Discovered new exit (range 16) 113 | -11/Scrapyard | Entered Materials 189 | -10/Materials | Discovered new exit (range 14) 281 | -10/Materials | Repaired EM Pulse Gun 303 | -10/Materials | Build established: Mutant 657 | -10/Materials | Discovered new exit (range 9) 729 | -10/Materials | Discovered new exit (range 12) 903 | -10/Materials | Discovered new exit (range 10) 1240 | -10/Materials | Entered Mines 1276 | -10/Mines | Met a Derelict bent on vengeance 1314 | -10/Mines | Learned Materials security intel 1329 | -10/Mines | Found a hidden stash of uninstalled traps 1828 | -10/Mines | Deemed a non-threat by the Exiles lab entrance 1829 | -10/Mines | Discovered new exit (range 5) 1919 | -10/Mines | Discovered new exit (range 6) 1920 | -10/Mines | Learned location of Storage (-9) 2211 | -10/Mines | Discovered new exit (range 12) 2643 | -10/Mines | Entered Exiles 2670 | -10/Exiles | Discovered new exit (range 14) 2733 | -10/Exiles | Met 8R-AWN 2765 | -10/Exiles | Met EX-HEX 2827 | -10/Exiles | Build established: Scavenger-Mutant 2838 | -10/Exiles | Met EX-BIN 2994 | -10/Exiles | Met EX-DEC 3077 | -10/Exiles | Learned location of Zion (-7) 3280 | -10/Exiles | Visited The Gauntlet 3642 | -10/Exiles | Discovered new exit (range 14) 4030 | -10/Exiles | Entered Mines 4054 | -9/Mines | Learned Materials emergency access door positions 4151 | -9/Mines | Received a Rocket Launcher from a helpful Derelict 4442 | -9/Mines | Discovered new exit (range 12) 4467 | -9/Mines | Assisted by bots powering up and referring to "LRC-V3" 4798 | -9/Mines | Assembled infested the area 4803 | -9/Mines | Assisted by a Guerilla fighting off Assembled 4831 | -9/Mines | Core integrity fell below 50% 4848 | -9/Mines | Core integrity fell below 20% 4850 | -9/Mines | Destroyed by as-12040 with Assembled Blade Last Messages --------------- HV Slug penetrates as-81769. as-81769 suffers critical hit. as-81769 destroyed. as-11887 suffers critical hit. as-94072 destroyed. JO-MME(h) critical meltdown. Aluminum Leg destroyed. as-70912 destroyed. Lgt. Assault Rifle destroyed. as-32805 destroyed. Acquired 16 matter. Acquired 1 matter. Imp. Heat Sink destroyed. Aluminum Leg destroyed. Lgt. Assault Rifle destroyed. Dropped Hcp. Storage Unit. Dropped Aluminum Leg. Dropped Rocket Launcher. Dropped Imp. Ion Engine. [Achievement: This Is Interesting...] Map ----- +----------------------------------------------------+ | ??????????????????????????????????????????? | | ??????????????????????????????????????????? | | ???????????????????????????????????????????# | | ???????????????????????????????????????????# | | ????????????? ?????????????????????????????# | | ????????????? ?????????????????????????????# | | ????????????? ?????????????????????????????# | | ????????????? "??????# ??????????????????# | | ????????????? "#????# ?????????????????# | | ????????????? ???# ??????????????????# | | ?????????????#"%## ???????????????????# | | ?????????????#" ????????????????????# | | ??????#?????## #????????????????????## | | ?????## ????# ##????????????????????# | | ?????# ???# a #????????????????????# | | ??????? ### = #?????????####???????# | | ????????? a #??????????# ######### | | ??????????? =%[aa #?????????### | | ????????????# *!%!=% ##????????# | | ?????????????# =*%! ###??????# ##### | | ?????????????# %%|= ##?????# #??## | | ?????????????# [%a! #?????##### ##??# | | ????????????## ==%a ##?????????####???# | | ???????????## = ###????####?????????# | | ???????????# aaa##????## ##????????# | | ???????????# ###!@| ##?### ##???????## | | ???????????## ##?##!* ### #????????## | | ????????????###????#* ########### | | ???????????????????# k ## | | ??????????????????## ############### | | ?????????????????## ##?????????????? | | ?????????????????# ##??????????????# | | ?????????????????# ##???????????????# | | ???????????####??## t #????????????????# | | ??????????## ##??### ##????????????????# | | ????????### ##???## ##????????????????# | | ???????## #????# #???????????????## | | ???##### #????# ##?????????????## | | ???# ##????## #????????????## | | ???# ## #??????# #??????????### | | ???## ### #??????## ##?????????## | | ????## ##?# #???????# ###????####### | | ?????######??# #???????# #?????## ## # | | ?????????????# #???????# ####### ## | | ?????????????# #???????# #? | | ????????????## #???????# ##? | | ???????????## ##??????###### ##?? | | ???????????# ###?????????# ##?? | | ???????????# ##????????## ### | | ???????????# #?????????# ## # | +----------------------------------------------------+ Best States ------------- Heat Dissipation 39 Energy Generation 12 Energy Capacity 265 Matter Stores 300 Matter Capacity 300 Sight Range 16 Terrain Scan Density 10 Resistance: KI 20 Resistance: TH 20 Resistance: EX 20 Resistance: EM 20 Resistance: I 20 Resistance: S 20 Resistance: P 20 Evasion (%) 40 Offensive Hacking 10 Item Schematics ----------------- None Robot Schematics ------------------ None Fabricated ------------ Nothing Alien Tech Used ----------------- None Achievements -------------- Brute Force This Is Interesting... Challenges ------------ None Game ------ Seed DroneMomentumDetonator Manual? 0 Play Time 00:45:54 Cumulative 32.1 hours Start 2020.10.20 @ 17:07:30 End 2020.10.20 @ 17:55:07 Sessions 1 Manual Loads 0 Difficulty Adventurer Special Mode None Game No. 11 Rogue 0 Adventurer 11 Explorer 0 Win Type - Total 0 Types 0/0/0/0/0/0/0/0/0 Lore% 25 Gallery% 33 Achievement% 27 Wizard Run 0 Options --------- ASCII 0 Keyboard 0 Movement Mouse Keybinds 0 Fullscreen 2 Font 18/SmallcapsGlow Map View 76x50 Tactical HUD 0 Map Filters NONE Filters NONE Steam 1 RUN: a282871b-536d-4c01-a8a0-6da3a8f4c4d4